Department family,Entity,Date,Expense type,Expense area,Supplier,Transaction number,Amount,Description,Supplier Post Code,
Departmen of Health,NHS Business Services Authority,01/06/2016,Temporary Staff,Corporate Services,CLICK TRAVEL LIMITED,0050032185,"70,198.55",TRAVEL APRIL 16,B1 1TT,
Departmen of Health,NHS Business Services Authority,01/06/2016,Temporary Staff,Pensions Division,PRICEWATERHOUSE COOPERS LLP,0080070136,"82,243.14",EXCESS PO 12836,SE1 2RD,
Departmen of Health,NHS Business Services Authority,01/06/2016,Statutory Payments,Statutory Payments,CABINET OFFICE CIVIL SERVICE PENSIONS,0080070388,"53,907.30",DEDUCTIONS MAY 16,RG24 9NW,
Departmen of Health,NHS Business Services Authority,01/06/2016,Rent,Corporate Services,EUROPEAN PENSIONS MANAGEMENT LTD,0080070401,"160,000.00",25.03.16 / 23.06.16 HESKETH HOUSE,SP3 5WY,
Departmen of Health,NHS Business Services Authority,01/06/2016,Training Materials,Corporate Services,TRAC SYSTEMS LTD,0080070411,"112,320.00",Delegate - Danny Ward,DE45 1GT,
Departmen of Health,NHS Business Services Authority,01/06/2016,Security Services Maintenance,Corporate Services,INTEGRATED HEALTH PROJECTS,0080070416,"81,600.97",IHP CERT 56 TASK 5.20,HP2 7TR,
Departmen of Health,NHS Business Services Authority,01/06/2016,General Maintenance,NHS Protect,INTEGRATED HEALTH PROJECTS,0080070416,"1,276.01",MW 5.06 PMI 001 Skipton House Data,HP2 7TR,
Department of Health,NHS Business Services Authority,01/06/2016,Dental Contractors,Dental Services ,,,"189,480,867.00",Payments to Dental Contractors,,
Department of Health,NHS Business Services Authority,01/06/2016,Pharmacy Contractors,Prescription Pricing ,,,"109,853,922.98",Payments to Pharmacy Contractors,,
Department of Health,NHS Business Services Authority,01/06/2016,Pharmacy Contractors,Prescription Pricing ,,,"729,731,363.78",Payments to Pharmacy Contractors,,
Departmen of Health,NHS Business Services Authority,02/06/2016,Postage Charges,Prescription Pricing Division,ROYAL MAIL,0080069729,"190,183.09",AC 0912819049  Tax Credit EU,S49 1HQ,
Departmen of Health,NHS Business Services Authority,03/06/2016,Envision Estates,Pensions Division,PAYMASTER (1836) LTD,0080070531,"32,215.77",Estates Works (3 quotes obtained for,RH10 1UH,
Departmen of Health,NHS Business Services Authority,03/06/2016,Building Works,Corporate Services,PAYMASTER (1836) LTD,0080070532,"47,883.47",Refurbish the 1st floor west elevation,RH10 1UH,
Departmen of Health,NHS Business Services Authority,03/06/2016,Envision Other,Pensions Division,PAYMASTER (1836) LTD,0080070536,"29,107.39",Fibre Infrastructure Refresh,RH10 1UH,
Department of Health,NHS Business Services Authority,03/06/2016,Pharmacy Contractors,Prescription Pricing ,,,"1,659,480.80",Payments to Pharmacy Contractors,,
Departmen of Health,NHS Business Services Authority,06/06/2016,Rates Charges,Corporate Services,NEWCASTLE CITY COUNCIL,0050032193,"26,590.00",stella house,NE99 2PT,
Departmen of Health,NHS Business Services Authority,06/06/2016,Rates Charges,Corporate Services,NEWCASTLE CITY COUNCIL,0050032194,"37,772.00",BRIDGE HOUSE,NE99 2PT,
Department of Health,NHS Business Services Authority,07/06/2016,Pharmacy Contractors,Prescription Pricing ,,,"127,626.76",Payments to Pharmacy Contractors,,
Departmen of Health,NHS Business Services Authority,09/06/2016,Postage Charges,Prescription Pricing Division,ROYAL MAIL,0080070382,"24,645.95",A/C 0912819048,S49 1HQ,
Departmen of Health,NHS Business Services Authority,09/06/2016,IBM Maintenance Contract,Prescription Pricing Division,COMPUTACENTER (UK) LTD,0080070555,"446,137.50",Part No. E025SLL - IBM Websphere,AL10 9TW,
Departmen of Health,NHS Business Services Authority,09/06/2016,Temporary Staff,Prescription Pricing Division,BROOK STREET (UK) LTD,0080070567,"28,331.36",E THWAITES W/E 20/05/16,AL1 4ZX,
Departmen of Health,NHS Business Services Authority,13/06/2016,Temporary Staff,Project Pacific,DEPARTMENT FOR WORKS AND PENSIONS,0080069821,"31,860.00",DATA MATCHING SERVICE,FY5 3TA,
Departmen of Health,NHS Business Services Authority,13/06/2016,Envision Other,Pensions Division,PAYMASTER (1836) LTD,0080070467,"97,482.00",Costs in relation to the provision of,RH10 1UH,
Departmen of Health,NHS Business Services Authority,13/06/2016,Printing Charges (External),Prescription Pricing Division,THAMES CARD TECHNOLOGY LTD,0080070774,"29,854.80","Contract for the Production,",SS6 7UQ,
Departmen of Health,NHS Business Services Authority,13/06/2016,Temporary Staff,Pensions Division,PAYMASTER (1836) LTD,0080070783,"24,140.00",Equiniti Paymaster 2015 Scheme Hutton,RH10 1UH,
Departmen of Health,NHS Business Services Authority,13/06/2016,Temporary Staff,Pensions Division,PAYMASTER (1836) LTD,0080070789,"63,965.60",Equiniti Paymaster 2015 Scheme Hutton IT,RH10 1UH,
Departmen of Health,NHS Business Services Authority,13/06/2016,Temporary Staff,Pensions Division,PAYMASTER (1836) LTD,0080070794,"91,210.20",EXCESS PO 13248,RH10 1UH,
Department of Health,NHS Business Services Authority,15/06/2016,Statutory Payments,Corporate Services,HMRC,,"1,233,506.39",NI & TAX,,
Department of Health,NHS Business Services Authority,15/06/2016,Statutory Payments,Corporate Services,NHS Pension Scheme,,"778,697.11",PENSIONS,,
Departmen of Health,NHS Business Services Authority,17/06/2016,Envision Payroll,Pensions Division,PAYMASTER (1836) LTD,0080070853,"30,672.61",CONTRACT ADJ APRIL 16,RH10 1UH,
Departmen of Health,NHS Business Services Authority,21/06/2016,Temporary Staff,Prescription Pricing Division,BROOK STREET (UK) LTD,0080070815,"32,291.82",S CHOWDHURY W/E 27/05/16,AL1 4ZX,
Departmen of Health,NHS Business Services Authority,21/06/2016,Rent,Corporate Services,EMERSON MANAGEMENT SERVICES,0080070907,"122,697.00",CAR PARKING QTRLY RENT 24061628091,SK9 7LF,
Departmen of Health,NHS Business Services Authority,24/06/2016,Postage Charges,Prescription Pricing Division,ROYAL MAIL,0080070589,"21,090.50",AC 0912819048,S49 1HQ,
Departmen of Health,NHS Business Services Authority,24/06/2016,IT,Corporate Services,CAPITA BUSINESS SERVICES LTD,0080071161,"408,800.53",PCN APR16/CROSS CHRGS APR16/POSTAGE MAR,DL1 9HN,
Departmen of Health,NHS Business Services Authority,24/06/2016,Postage Charges,Dental Services Division,CAPITA BUSINESS SERVICES LTD,0080071161,"-1,878.38",PCN APR16/CROSS CHRGS APR16/POSTAGE MAR,DL1 9HN,
Departmen of Health,NHS Business Services Authority,24/06/2016,Managed Service Income,Project Pacific,CAPITA BUSINESS SERVICES LTD,0080071161,"-20,000.00",PCN APR16/CROSS CHRGS APR16/POSTAGE MAR,DL1 9HN,
Departmen of Health,NHS Business Services Authority,24/06/2016,Service Desk,Corporate Services,CAPITA BUSINESS SERVICES LTD,0080071163,"337,665.17",MITI FIXED CHARGES SERVICE DESK,DL1 9HN,
Departmen of Health,NHS Business Services Authority,24/06/2016,Telphone Charges,Corporate Services,CAPITA BUSINESS SERVICES LTD,0080071169,"326,017.28",MVS CALLS MAR16,DL1 9HN,
Departmen of Health,NHS Business Services Authority,24/06/2016,Mobile Phones,NHS Protect,CAPITA BUSINESS SERVICES LTD,0080071169,"-2,200.69",NHSP TELEPHONY CREDITS APR16,DL1 9HN,
Departmen of Health,NHS Business Services Authority,24/06/2016,Telphone Charges,Project Pacific,CAPITA BUSINESS SERVICES LTD,0080071169,185.80,MVS CALLS MAR16,DL1 9HN,
Departmen of Health,NHS Business Services Authority,24/06/2016,Training,Corporate Services,CAPITA BUSINESS SERVICES LTD,0080071173,"237,036.82",TRAINING,DL1 9HN,
Departmen of Health,NHS Business Services Authority,24/06/2016,Rent,Dental Services Division,CAPITA BUSINESS SERVICES LTD,0080071173,"9,007.92",EASTBOURNE ACCOMMODATION,DL1 9HN,
Departmen of Health,NHS Business Services Authority,28/06/2016,Temporary Staff,Prescription Pricing Division,BROOK STREET (UK) LTD,0080071221,"25,261.21",A MOORE W/E 10.06.16,AL1 4ZX,
Departmen of Health,NHS Business Services Authority,28/06/2016,Statutory Payments,Statutory Payments,CABINET OFFICE CIVIL SERVICE PENSIONS,0080071247,"53,587.36",DEDUCTIONS JUNE 2016,RG24 9NW,
Departmen of Health,NHS Business Services Authority,28/06/2016,Service Desk,Corporate Services,CAPITA BUSINESS SERVICES LTD,0080071263,"342,000.95",MITI FIXED CHARGES MAY2016,DL1 9HN,
Departmen of Health,NHS Business Services Authority,28/06/2016,Service Desk,Corporate Services,CAPITA BUSINESS SERVICES LTD,0080071264,"342,000.95",MITI FIXED CHARGES JUNE 2016,DL1 9HN,
Departmen of Health,NHS Business Services Authority,28/06/2016,Licences Capital,Prescription Pricing Division,CAPITA BUSINESS SERVICES LTD,0080071268,"396,411.57",Exalytics In-memory Software - Software,DL1 9HN,
Departmen of Health,NHS Business Services Authority,28/06/2016,Professional Fees,Project Pacific,CAPITA BUSINESS SERVICES LTD,0080071269,"26,958.42",Project Manager - Senior Consultant,DL1 9HN,
Departmen of Health,NHS Business Services Authority,28/06/2016,Temporary Staff,Prescription Pricing Division,CAPITA BUSINESS SERVICES LTD,0080071273,"39,348.09",Resource: Network Engineer - Project,DL1 9HN,
Departmen of Health,NHS Business Services Authority,28/06/2016,Internal Audit Fees,Corporate Services,DEPARTMENT OF HEALTH,0080071310,"47,147.95",47.13 days 15-16 Third Party Assurance,LS2 7UE,
Departmen of Health,NHS Business Services Authority,29/06/2016,Envision Retained Services,Pensions Division,PAYMASTER (1836) LTD,0050032296,"886,790.32",MONTHLY CONTRACT CHARGES JUNE 16,RH10 1UH,
Departmen of Health,NHS Business Services Authority,29/06/2016,IT,Corporate Services,CAPITA BUSINESS SERVICES LTD,0080071259,"378,427.63",PCN MAY 2016,DL1 9HN,
Departmen of Health,NHS Business Services Authority,29/06/2016,Postage Charges,Dental Services Division,CAPITA BUSINESS SERVICES LTD,0080071259,"-5,292.28",POSTAGE CHARGES MARCH 2016,DL1 9HN,
Departmen of Health,NHS Business Services Authority,29/06/2016,Managed Service Income,Project Pacific,CAPITA BUSINESS SERVICES LTD,0080071259,"-20,000.00",CROSS CHARGES MAY 2016,DL1 9HN,
Departmen of Health,NHS Business Services Authority,29/06/2016,Training,Corporate Services,CAPITA BUSINESS SERVICES LTD,0080071261,"240,080.50",TRAINING,DL1 9HN,
Departmen of Health,NHS Business Services Authority,29/06/2016,Rent,Dental Services Division,CAPITA BUSINESS SERVICES LTD,0080071261,"9,123.58",EASTBOURNE ACCOMMODATION,DL1 9HN,
Departmen of Health,NHS Business Services Authority,29/06/2016,Training,Corporate Services,CAPITA BUSINESS SERVICES LTD,0080071262,"240,080.50",TRAINING,DL1 9HN,
Departmen of Health,NHS Business Services Authority,29/06/2016,Rent,Dental Services Division,CAPITA BUSINESS SERVICES LTD,0080071262,"9,123.58",EASTBOURNE ACCOMMODATION,DL1 9HN,
Departmen of Health,NHS Business Services Authority,29/06/2016,IT Hardware Purchase Capital,Corporate Services,CAPITA BUSINESS SERVICES LTD,0080071440,"723,222.58",2016 CAPITAL CHARGE,DL1 9HN,
Departmen of Health,NHS Business Services Authority,29/06/2016,Telphone Charges,Corporate Services,CAPITA BUSINESS SERVICES LTD,0080071441,"327,508.82",MITI VARIABLE CHARGES MAY 16,DL1 9HN,
Departmen of Health,NHS Business Services Authority,29/06/2016,Mobile Phones,NHS Protect,CAPITA BUSINESS SERVICES LTD,0080071441,"-2,228.95",MITI VARIABLE CHARGES MAY 16,DL1 9HN,
Department of Health,NHS Business Services Authority,30/06/2016,Pharmacy Contractors,Prescription Pricing ,,,"8,121,894.43",Payments to Pharmacy Contractors,,
